bitfinex/quotes_SOLUSD_20240625
["timestamp","ask_amount","ask_price","bid_price","bid_amount"]
[1719321979183,8.92,137.46,137.45,25.0]
[1719321982386,16.1948,137.46,137.45,25.0]
[1719321982770,8.92,137.46,137.45,25.0]
[1719321985265,15.66954971,137.5,137.45,25.0]
[1719321985490,8.92,137.47,137.45,25.0]
[1719321985679,8.92,137.46,137.45,25.0]
[1719321986786,16.1948,137.46,137.45,25.0]
[1719321987284,8.92,137.46,137.45,25.0]
[1719321989181,16.1948,137.46,137.45,25.0]
[1719321989685,7.2754,137.45,137.43,25.0]
[1719321990082,8.92,137.44,137.43,25.0]
[1719321990387,16.1959,137.44,137.43,25.0]
[1719321990778,16.1959,137.44,137.41,25.0]
[1719321991089,8.92,137.42,137.41,25.0]
[1719321992789,7.2755,137.45,137.41,25.0]
[1719321992790,8.92,137.43,137.41,25.0]
[1719321997389,17.07894202,137.46,137.43,25.0]
[1719321997686,8.92,137.44,137.43,25.0]
[1719321998394,16.1959,137.44,137.43,25.0]
[1719321998578,8.92,137.44,137.43,25.0]
[1719321999486,8.42,137.44,137.43,25.0]
[1719322001283,15.6959,137.44,137.43,25.0]
[1719322003286,7.2759,137.44,137.43,25.0]
[1719322003492,16.1959,137.44,137.43,25.0]
[1719322006498,7.2754,137.45,137.43,25.0]
[1719322006812,17.07904202,137.46,137.45,25.0]
[1719322007316,25.99904202,137.46,137.45,25.0]
[1719322007490,17.07904202,137.46,137.45,25.0]
[1719322007690,9.80404202,137.46,137.43,25.0]
[1719322007895,8.92,137.44,137.43,25.0]
[1719322008093,7.2757,137.45,137.43,25.0]
[1719322008293,8.92,137.44,137.43,25.0]
[1719322008612,16.1957,137.45,137.43,25.0]
[1719322009203,9.80404202,137.46,137.43,25.0]
[1719322009204,16.1959,137.44,137.43,25.0]
[1719322010302,7.2759,137.44,137.43,25.0]
[1719322010612,8.92,137.44,137.43,25.0]
[1719322010811,16.1959,137.44,137.43,25.0]
[1719322012401,7.2755,137.45,137.43,25.0]
[1719322012612,8.92,137.44,137.43,25.0]
[1719322013501,9.80404202,137.46,137.43,25.0]
[1719322013687,8.92,137.44,137.43,25.0]
[1719322013887,16.1959,137.44,137.43,25.0]
[1719322015413,7.2769,137.42,137.41,25.0]
[1719322015707,16.1969,137.42,137.41,25.0]
[1719322015911,8.92,137.42,137.41,25.0]
[1719322017285,7.2765,137.43,137.41,25.0]
[1719322017485,8.92,137.42,137.41,25.0]
[1719322017699,8.92,137.43,137.41,25.0]
[1719322017915,7.276,137.44,137.41,25.0]
[1719322018211,7.276,137.44,137.43,25.0]
[1719322018518,7.276,137.44,137.38,25.0]
[1719322018519,18.72404202,137.44,137.38,25.0]
[1719322018724,8.92,137.39,137.38,25.0]
[1719322021395,16.1985,137.39,137.38,25.0]
[1719322021599,16.1985,137.39,137.34,24.414]
[1719322021600,8.92,137.39,137.36,25.0]
[1719322021815,135.68,137.41,137.36,25.0]
[1719322021816,16.1996,137.37,137.36,25.0]
[1719322021997,8.92,137.37,137.36,25.0]
[1719322023216,7.2787,137.39,137.36,25.0]
[1719322023819,8.92,137.37,137.36,25.0]
[1719322026600,7.2806,137.35,137.34,25.0]
[1719322026806,8.92,137.37,137.34,25.0]
[1719322026807,7.2803,137.36,137.34,25.0]
[1719322027009,8.92,137.35,137.34,25.0]
[1719322027826,8.92,137.35,137.33,0.8467785]
[1719322027827,7.2811,137.34,137.33,0.8467785]
[1719322028016,16.2011,137.34,137.33,0.8467785]
[1719322029307,7.2811,137.34,137.33,0.8467785]
[1719322029509,16.2011,137.34,137.33,0.8467785]
[1719322030613,7.2811,137.34,137.33,0.8467785]
[1719322030813,16.2011,137.34,137.33,0.8467785]
[1719322031121,7.2811,137.34,137.33,0.8467785]
[1719322031321,16.2011,137.34,137.33,0.8467785]
[1719322031501,7.2811,137.34,137.33,0.8467785]
[1719322031709,16.2011,137.34,137.33,0.8467785]
[1719322032810,15.66074029,137.37,137.33,0.8467785]
[1719322033010,20.0,137.36,137.33,0.8467785]
[1719322033228,8.92,137.34,137.33,0.8467785]
[1719322033430,16.2007,137.35,137.34,25.0]
[1719322034724,7.2801,137.36,137.34,25.0]
[1719322034909,8.92,137.35,137.34,25.0]
[1719322035705,16.2006,137.35,137.34,25.0]
[1719322036204,7.2801,137.36,137.34,25.0]
[1719322036605,8.92,137.35,137.34,25.0]
[1719322037406,7.2801,137.36,137.34,25.0]
[1719322037629,16.2001,137.36,137.34,25.0]
[1719322038047,7.2801,137.36,137.34,25.0]
[1719322038203,25.17873009,137.37,137.36,25.0]
[1719322038408,26.00364202,137.37,137.36,25.0]
[1719322040027,17.08364202,137.37,137.36,25.0]
[1719322040225,26.00364202,137.37,137.36,25.0]
[1719322041215,9.80404202,137.37,137.36,25.0]
[1719322041419,8.92,137.37,137.36,25.0]
[1719322041808,7.279,137.38,137.36,25.0]
[1719322042011,8.92,137.37,137.36,25.0]
[1719322042429,7.2786,137.39,137.36,25.0]
[1719322042631,16.1991,137.38,137.36,25.0]
[1719322042838,8.92,137.37,137.36,25.0]
[1719322043828,17.08234202,137.4,137.39,25.0]
[1719322044127,9.80404202,137.4,137.39,25.0]
[1719322044327,17.08204202,137.4,137.37,25.0]
[1719322044635,17.08204202,137.4,137.39,25.0]
[1719322044636,26.00204202,137.4,137.39,25.0]
[1719322044811,18.72404202,137.4,137.39,25.0]
[1719322045533,26.00204202,137.4,137.39,25.0]
[1719322046926,7.2796,137.37,137.35,25.0]
[1719322047120,7.2794,137.38,137.35,25.0]
[1719322047318,17.08214202,137.4,137.36,4.02053589]
[1719322047631,17.08214202,137.4,137.35,32.2805]
[1719322047632,16.1985,137.39,137.37,25.0]
[1719322047823,8.92,137.39,137.37,25.0]
[1719322048137,16.1987,137.39,137.37,25.0]
[1719322049335,8.92,137.39,137.37,25.0]
[1719322049921,16.1986,137.39,137.37,25.0]
[1719322050624,8.92,137.39,137.37,25.0]
[1719322051738,9.80404202,137.4,137.39,25.0]
[1719322051932,18.72404202,137.4,137.37,25.0]
[1719322052242,18.72404202,137.4,137.39,25.0]
[1719322052434,26.00204202,137.4,137.39,25.0]
[1719322053341,18.72404202,137.4,137.39,25.0]
[1719322053731,26.00204202,137.4,137.39,25.0]
[1719322054041,18.72404202,137.4,137.39,25.0]
[1719322054235,26.00204202,137.4,137.39,25.0]
[1719322055844,26.00204202,137.4,137.37,25.0]
[1719322056143,8.92,137.38,137.37,25.0]
[1719322056351,8.92,137.39,137.37,25.0]
[1719322058856,9.80404202,137.4,137.39,25.0]
[1719322059151,9.83566296,137.46,137.43,25.0]
[1719322059354,6.5069,137.49,137.45,25.0]
[1719322059549,8.92,137.47,137.45,25.0]
[1719322059843,27.2741,137.48,137.45,25.0]
[1719322059844,7.2741,137.48,137.45,25.0]
[1719322060141,7.2731,137.5,137.45,25.0]
[1719322060445,7.55515212,137.51,137.44,13.25213279]
[1719322060446,7.55515212,137.51,137.5,25.0]
[1719322060746,17.10626296,137.54,137.52,25.0]
[1719322060967,8.92,137.53,137.52,25.0]
[1719322061328,26.02626296,137.54,137.52,25.0]
[1719322061532,8.92,137.53,137.52,25.0]
[1719322062042,16.1911,137.53,137.52,25.0]
[1719322062428,108.92,137.53,137.48,25.0]
[1719322062747,8.92,137.49,137.48,25.0]
[1719322063038,7.2722,137.51,137.48,25.0]
[1719322063248,8.92,137.5,137.48,25.0]
[1719322070338,19.90761225,137.52,137.48,25.0]
[1719322070527,16.1932,137.49,137.46,25.0]
[1719322070723,8.92,137.47,137.46,25.0]
[1719322071144,19.90761225,137.52,137.46,25.0]
[1719322071145,7.2728,137.5,137.46,25.0]
[1719322071328,7.2728,137.5,137.48,25.0]
[1719322071665,8.92,137.49,137.48,25.0]
[1719322071859,28.92,137.49,137.48,25.0]
[1719322072663,20.0,137.49,137.48,25.0]
[1719322072952,36.1932,137.49,137.48,25.0]
[1719322074036,27.2732,137.49,137.48,25.0]
[1719322074236,36.1932,137.49,137.48,25.0]
[1719322076152,28.92,137.49,137.45,25.0]
[1719322076684,7.2744,137.47,137.45,25.0]
[1719322077551,8.92,137.46,137.45,25.0]
[1719322078059,16.1948,137.46,137.45,25.0]
[1719322079154,8.92,137.46,137.45,25.0]
[1719322079834,16.1948,137.46,137.45,25.0]
[1719322080338,8.92,137.46,137.45,25.0]
[1719322080558,16.1948,137.46,137.45,25.0]
[1719322080856,8.92,137.46,137.45,25.0]
[1719322081353,16.1948,137.46,137.45,25.0]
[1719322082047,7.2761,137.44,137.42,25.0]
[1719322082262,8.92,137.43,137.42,25.0]
[1719322082562,8.92,137.43,137.4,25.0]
[1719322082563,16.1964,137.43,137.4,25.0]
[1719322082773,16.1964,137.43,137.42,25.0]
[1719322083137,8.92,137.43,137.42,25.0]
[1719322083580,16.1964,137.43,137.42,25.0]
[1719322083762,7.276,137.44,137.42,25.0]
[1719322083946,8.92,137.43,137.42,25.0]
[1719322084660,16.1964,137.43,137.42,25.0]
[1719322085758,8.92,137.43,137.42,25.0]
[1719322086167,29.83566296,137.46,137.42,32.2766]
[1719322086336,37.11046296,137.46,137.45,25.0]
[1719322086663,46.03046296,137.46,137.41,50.4701]
[1719322086861,38.75566296,137.46,137.41,25.0]
[1719322087055,8.92,137.44,137.43,25.0]
[1719322087256,37.11066296,137.46,137.43,25.0]
[1719322087446,8.92,137.45,137.43,25.0]
[1719322087863,9.83566296,137.46,137.43,25.0]
[1719322088041,9.83566296,137.46,137.45,25.0]
[1719322088249,8.92,137.46,137.45,25.0]
[1719322088544,7.2738,137.48,137.47,25.0]
[1719322088545,8.92,137.48,137.47,25.0]
[1719322088756,16.1938,137.48,137.47,25.0]
[1719322089158,7.2748,137.46,137.45,25.0]
[1719322089361,16.1948,137.46,137.45,25.0]
[1719322089568,8.92,137.46,137.45,25.0]
[1719322089863,16.1944,137.47,137.45,25.0]
[1719322090045,8.92,137.46,137.45,25.0]
[1719322090661,8.92,137.47,137.45,25.0]
[1719322090866,16.1943,137.47,137.45,25.0]
[1719322091254,8.92,137.47,137.45,25.0]
[1719322091471,8.09508807,137.49,137.47,25.0]
[1719322091759,7.2746,137.47,137.45,25.0]
[1719322091967,8.92,137.46,137.45,25.0]
[1719322092355,16.1948,137.46,137.45,25.0]
[1719322092667,8.92,137.46,137.45,25.0]
[1719322093266,16.1948,137.46,137.45,25.0]
[1719322093466,36.1948,137.46,137.45,25.0]
[1719322096174,20.0,137.46,137.45,25.0]
[1719322096777,28.92,137.46,137.45,25.0]
[1719322096957,20.0,137.46,137.45,25.0]
[1719322097477,28.92,137.46,137.45,25.0]
[1719322099201,36.1948,137.46,137.45,25.0]
[1719322103481,27.2748,137.46,137.45,25.0]
[1719322103674,36.1948,137.46,137.45,25.0]
[1719322103988,25.48858198,137.49,137.45,25.0]
[1719322104182,8.92,137.46,137.45,25.0]
[1719322104484,16.1946,137.47,137.45,25.0]
[1719322104886,8.92,137.46,137.45,25.0]
[1719322107358,7.2739,137.48,137.47,25.0]
[1719322107560,36.1939,137.48,137.47,25.0]
[1719322108655,7.2748,137.46,137.45,25.0]
[1719322108858,16.1948,137.46,137.45,25.0]
[1719322109754,9.83566296,137.48,137.47,25.0]
[1719322109960,8.92,137.51,137.5,25.0]
[1719322110170,17.10686296,137.53,137.5,25.0]
[1719322110381,8.92,137.51,137.5,25.0]
[1719322111596,16.1921,137.51,137.5,25.0]
[1719322114291,8.92,137.51,137.5,25.0]
[1719322114785,16.1921,137.51,137.5,25.0]
[1719322115090,8.92,137.51,137.5,25.0]
[1719322115884,16.1921,137.51,137.5,25.0]
[1719322116089,7.2721,137.51,137.5,25.0]
[1719322116263,16.1921,137.51,137.5,25.0]
[1719322116464,8.92,137.51,137.5,25.0]
[1719322116785,16.1921,137.51,137.5,25.0]
[1719322118199,8.92,137.51,137.5,25.0]
[1719322118689,16.1921,137.51,137.5,25.0]
[1719322120162,16.1921,137.51,137.48,25.0]
[1719322120368,16.1921,137.51,137.44,15.5406]
[1719322120369,8.92,137.49,137.44,25.0]
[1719322120602,8.92,137.46,137.44,25.0]
[1719322120769,8.92,137.46,137.44,32.2758]
[1719322121168,8.92,137.46,137.44,25.0]
[1719322121588,158.6788718,137.5,137.44,25.0]
[1719322121795,8.92,137.45,137.44,25.0]
[1719322122291,8.92,137.46,137.44,25.0]
[1719322122487,8.92,137.45,137.44,25.0]
[1719322123398,8.92,137.46,137.44,25.0]
[1719322125578,8.92,137.46,137.42,33.6003]
[1719322125579,8.92,137.47,137.46,25.0]
[1719322125786,28.92,137.47,137.46,25.0]
[1719322128011,36.1943,137.47,137.46,25.0]
[1719322128910,20.0,137.47,137.46,25.0]
[1719322129228,28.92,137.47,137.46,25.0]
[1719322130314,20.0,137.47,137.46,25.0]
[1719322130809,28.92,137.47,137.46,25.0]
[1719322131322,20.0,137.47,137.46,25.0]
[1719322131498,22.9671718,137.5,137.49,25.0]
[1719322131685,44.28480609,137.5,137.49,25.0]
[1719322132002,35.36480609,137.5,137.49,25.0]
[1719322132208,44.28480609,137.5,137.49,25.0]
[1719322134228,35.36480609,137.5,137.49,25.0]
[1719322134393,8.09170609,137.5,137.49,25.0]
[1719322134594,7.2723,137.51,137.49,25.0]
[1719322135406,16.1923,137.51,137.49,25.0]
[1719322138423,7.2723,137.51,137.49,25.0]
[1719322138735,16.1923,137.51,137.49,25.0]
[1719322139293,7.60075467,137.53,137.51,25.0]
[1719322139512,7.2713,137.53,137.51,25.0]
[1719322139710,16.1913,137.53,137.51,25.0]
[1719322140325,7.2713,137.53,137.51,25.0]
[1719322140539,16.1913,137.53,137.51,25.0]
[1719322144341,7.2716,137.52,137.51,25.0]
[1719322144709,8.09170609,137.54,137.53,25.0]
[1719322144907,7.59877958,137.57,137.55,25.0]
[1719322145108,6.90192119,137.62,137.59,25.0]
[1719322145338,8.92,137.61,137.59,25.0]
[1719322145511,8.92,137.6,137.59,25.0]
[1719322145905,8.92,137.61,137.59,25.0]
[1719322146119,24.27810609,137.62,137.61,25.0]
[1719322146328,15.35810609,137.62,137.61,25.0]
[1719322146645,24.27810609,137.62,137.61,25.0]
[1719322147827,7.267,137.61,137.59,25.0]
[1719322148024,8.92,137.6,137.59,25.0]
[1719322148352,8.09170609,137.62,137.59,25.0]
[1719322148353,7.2665,137.62,137.59,25.0]
[1719322148541,8.92,137.6,137.59,25.0]
[1719322149539,16.1874,137.6,137.59,25.0]
[1719322149716,36.1874,137.6,137.59,25.0]
[1719322150918,20.0,137.6,137.59,25.0]
[1719322151248,28.92,137.6,137.59,25.0]
[1719322151785,20.0,137.6,137.59,25.0]
[1719322152114,27.2674,137.6,137.59,25.0]
[1719322152818,20.0,137.6,137.59,25.0]
[1719322153536,27.2674,137.6,137.59,25.0]
[1719322155548,7.2681,137.59,137.57,25.0]
[1719322155745,8.92,137.58,137.57,25.0]
[1719322156051,16.1884,137.58,137.57,25.0]
[1719322156730,28.92,137.58,137.57,25.0]
[1719322157250,28.92,137.58,137.55,25.0]
[1719322157457,8.92,137.56,137.55,25.0]
[1719322157751,28.92,137.56,137.55,25.0]
[1719322160558,29.32492913,137.6,137.55,43.1749]
[1719322160745,20.0,137.59,137.56,7.2695]
[1719322160946,8.92,137.58,137.56,7.2695]
[1719322161254,20.0,137.59,137.57,25.0]
[1719322161559,8.92,137.58,137.57,25.0]
[1719322161959,20.0,137.6,137.57,25.0]
[1719322162332,27.2675,137.6,137.57,25.0]
[1719322162532,8.92,137.58,137.57,25.0]
[1719322163033,27.2675,137.6,137.57,25.0]
[1719322163240,8.92,137.58,137.57,25.0]
[1719322163635,20.0,137.6,137.57,25.0]
[1719322163958,8.92,137.58,137.57,25.0]
[1719322164941,8.92,137.58,137.55,25.0]
[1719322165139,16.1895,137.56,137.55,25.0]
[1719322165363,36.1895,137.56,137.55,25.0]
[1719322166368,7.2702,137.55,137.53,25.0]
[1719322166554,28.92,137.54,137.53,25.0]
[1719322167540,36.1906,137.54,137.53,25.0]
[1719322168370,7.2723,137.51,137.48,25.0]
[1719322168577,8.92,137.49,137.48,25.0]
[1719322168738,7.2723,137.51,137.48,25.0]
[1719322169538,145.2483,137.53,137.48,25.0]
[1719322169744,26.73,137.5,137.43,43.1901]
[1719322169945,26.73,137.5,137.43,25.0]
[1719322169946,7.2746,137.47,137.43,25.0]
[1719322170739,7.2738,137.48,137.43,32.2763]
[1719322170951,20.0,137.47,137.43,32.2763]
[1719322172280,20.0,137.47,137.44,7.2758]
[1719322172577,20.0,137.48,137.44,7.2758]
[1719322172767,20.0,137.48,137.45,25.0]
[1719322173362,20.0,137.48,137.44,7.2758]
[1719322173548,27.2738,137.48,137.43,32.2762]
[1719322173951,20.0,137.48,137.45,25.0]
[1719322174854,20.0,137.48,137.45,32.2753]
[1719322175171,20.0,137.48,137.45,25.0]
[1719322176171,7.60526698,137.49,137.45,32.2752]
[1719322176377,7.2737,137.49,137.45,25.0]
[1719322176881,129.77583391,137.51,137.45,25.0]
[1719322177047,20.0,137.5,137.45,25.0]
[1719322177386,7.2739,137.48,137.45,25.0]
[1719322177675,7.2733,137.49,137.45,25.0]
[1719322177857,63.83856296,137.5,137.45,32.2753]
[1719322178175,7.2734,137.49,137.45,25.0]
[1719322178476,63.83846296,137.5,137.45,32.2752]
[1719322178851,56.56566296,137.5,137.45,43.1876]
[1719322179068,20.0,137.5,137.48,25.0]
[1719322179479,20.0,137.51,137.48,25.0]
[1719322179768,20.0,137.51,137.45,43.1876]
[1719322179971,7.2722,137.51,137.47,25.0]
[1719322180183,20.0,137.5,137.47,32.2742]
[1719322180478,27.2718,137.52,137.47,32.2742]
[1719322180682,20.0,137.52,137.47,25.0]
[1719322180985,20.0,137.52,137.49,50.4556]
[1719322181681,20.0,137.52,137.49,43.1828]
[1719322183649,7.27,137.55,137.51,32.272]
[1719322183882,20.0,137.54,137.51,25.0]
[1719322184047,27.2706,137.54,137.51,25.0]
[1719322184248,7.2713,137.53,137.51,25.0]
[1719322184445,20.0,137.54,137.51,25.0]
[1719322184875,7.2712,137.53,137.51,25.0]
[1719322185175,7.2707,137.54,137.51,25.0]
[1719322185371,20.0,137.55,137.51,25.0]
[1719322185670,7.2709,137.54,137.51,25.0]
[1719322186272,7.2711,137.53,137.51,25.0]
[1719322186470,20.0,137.55,137.51,25.0]
[1719322186674,7.2709,137.54,137.51,25.0]
[1719322187264,20.0,137.55,137.51,25.0]
[1719322187265,27.2702,137.55,137.51,25.0]
[1719322187776,7.2706,137.54,137.51,25.0]
[1719322187978,7.2711,137.53,137.51,25.0]
[1719322188279,7.2713,137.53,137.51,25.0]
[1719322188658,8.91,137.52,137.51,25.0]
[1719322189678,16.1816,137.52,137.51,25.0]
[1719322190075,8.91,137.52,137.49,25.0]
[1719322190584,7.2708,137.54,137.51,25.0]
[1719322190768,8.91,137.52,137.51,25.0]
[1719322191078,28.91,137.52,137.49,25.0]
[1719322191481,28.91,137.52,137.49,32.2731]
[1719322191982,7.2701,137.55,137.51,32.2717]
[1719322192281,20.0,137.54,137.51,25.0]
[1719322192486,8.91,137.52,137.51,25.0]
[1719322192865,20.0,137.54,137.51,25.0]
[1719322193062,8.91,137.52,137.51,25.0]
[1719322193767,27.2707,137.54,137.51,25.0]
[1719322193949,8.91,137.52,137.51,25.0]
[1719322197787,27.2706,137.54,137.51,25.0]
[1719322197998,8.91,137.52,137.51,25.0]
[1719322200386,17.43886851,137.56,137.54,25.0]
[1719322200590,28.91,137.55,137.54,25.0]
[1719322200800,9.83566296,137.56,137.54,25.0]
[1719322200975,16.51204032,137.58,137.57,25.0]
[1719322201300,9.83566296,137.61,137.57,25.0]
[1719322201582,8.91,137.58,137.55,50.4447]
[1719322201802,8.91,137.56,137.54,16.6489]
[1719322202097,8.91,137.55,137.54,16.6489]
[1719322202264,8.91,137.55,137.52,25.0]
[1719322202597,8.91,137.53,137.52,25.0]
[1719322202767,8.91,137.53,137.5,23.14]
[1719322202768,8.91,137.53,137.49,25.0]
[1719322203087,16.1827,137.5,137.49,25.0]
[1719322203282,36.1827,137.5,137.47,25.0]
[1719322203493,8.91,137.48,137.47,25.0]
[1719322203989,8.91,137.48,137.45,40.0846]
[1719322204170,7.2733,137.49,137.45,40.0846]
[1719322204369,8.91,137.46,137.45,25.0]
[1719322204587,16.1848,137.46,137.41,22.4871]
[1719322204799,8.91,137.42,137.41,15.2098]
[1719322204974,8.91,137.42,137.39,25.0]
[1719322205171,20.0,137.45,137.39,25.0]
[1719322205172,34.0363,137.44,137.39,18.1962]
[1719322205360,34.0363,137.44,137.38,7.279]
[1719322205361,20.0,137.43,137.38,7.279]
[1719322205675,20.0,137.43,137.39,7.2784]
[1719322206079,20.0,137.43,137.38,25.4758]
[1719322206270,20.0,137.43,137.39,7.2785]
[1719322206694,20.0,137.43,137.38,25.4755]
[1719322206872,20.0,137.43,137.38,50.4755]
[1719322207065,27.2766,137.43,137.38,25.4755]
[1719322207268,27.2766,137.43,137.38,43.1969]
[1719322207463,27.2766,137.43,137.38,50.4758]
[1719322207773,27.2766,137.43,137.38,50.4759]
[1719322208393,100.0,137.42,137.36,25.0]
[1719322208600,47.1,137.41,137.35,18.2009]
[1719322208913,47.1,137.41,137.36,7.28]
[1719322209076,7.2782,137.4,137.35,25.4814]
[1719322209275,20.0,137.39,137.34,25.0]
[1719322209477,100.0,137.4,137.33,0.8467785]
[1719322209698,20.34,137.39,137.33,0.8467785]
[1719322209921,27.6186,137.39,137.34,32.2808]
[1719322210084,145.0,137.4,137.39,44.750649]
[1719322210400,165.34,137.4,137.39,44.750649]
[1719322211117,20.0,137.4,137.39,44.750649]
[1719322211281,27.278,137.4,137.39,44.750649]
[1719322212304,20.0,137.4,137.39,44.750649]
[1719322212802,27.278,137.4,137.39,44.750649]
[1719322213902,27.448,137.4,137.39,44.750649]
[1719322214201,127.618,137.4,137.39,44.750649]
[1719322214401,177.58129306,137.4,137.39,44.750649]
[1719322214591,182.45366296,137.4,137.39,44.750649]
[1719322216917,37.45366296,137.4,137.39,44.750649]
[1719322217305,182.45366296,137.4,137.39,44.750649]
[1719322218898,188.77806296,137.4,137.39,44.750649]
[1719322220099,100.0,137.38,137.33,25.8467785]
[1719322220420,46.93,137.37,137.33,25.8467785]
[1719322220621,27.2797,137.37,137.33,25.8467785]
[1719322221395,20.0,137.37,137.33,33.1283785]
[1719322221592,27.2796,137.37,137.33,25.8467785]
[1719322222620,7.2806,137.36,137.33,25.8467785]
[1719322222798,20.17,137.37,137.33,25.8467785]
[1719322222999,0.17,137.36,137.33,25.8467785]
[1719322223210,7.281,137.35,137.33,25.8467785]
[1719322223521,127.4511,137.34,137.33,0.8467785]
[1719322223693,172.6211,137.34,137.33,0.8467785]
[1719322227018,179.0152,137.34,137.33,0.8467785]
[1719322227204,188.85086296,137.34,137.33,0.8467785]
[1719322227522,196.94595103,137.34,137.33,0.8467785]
[1719322228717,212.57375103,137.34,137.33,0.8467785]
[1719322230703,45.21185103,137.34,137.33,0.8467785]
[1719322230910,27.2811,137.34,137.33,0.8467785]
[1719322231130,107.2811,137.34,137.33,0.8467785]
[1719322231329,7.2811,137.34,137.33,0.8467785]
[1719322231632,107.2811,137.34,137.33,0.8467785]
[1719322232204,152.6211,137.34,137.33,0.8467785]
[1719322232425,182.45676296,137.34,137.33,0.8467785]
[1719322232802,37.28676296,137.34,137.33,0.8467785]
[1719322233027,29.83566296,137.34,137.33,0.8467785]
[1719322233201,27.2811,137.34,137.33,0.8467785]
[1719322233402,27.4511,137.34,137.33,0.8467785]
[1719322233619,27.2811,137.34,137.33,0.8467785]
[1719322235112,24.72095862,137.36,137.33,0.8467785]
[1719322235313,7.60499566,137.36,137.33,0.8467785]
[1719322235619,7.2798,137.37,137.33,0.8467785]
[1719322235817,7.2798,137.37,137.33,8.1283785]
[1719322236118,7.2804,137.36,137.33,0.8467785]
[1719322236422,7.2796,137.37,137.33,0.8467785]
[1719322236917,7.2796,137.37,137.35,25.0]
[1719322237121,43.87376296,137.4,137.35,32.2805]
[1719322237321,7.2789,137.39,137.34,25.4837]
[1719322237517,7.2789,137.39,137.34,50.4837]
[1719322237701,7.2789,137.39,137.36,25.0]
[1719322238023,7.2789,137.39,137.35,7.2806]
[1719322238215,7.2789,137.39,137.38,25.0]
[1719322238719,7.2789,137.39,137.36,25.0]
[1719322238921,7.2791,137.38,137.34,50.4837]
[1719322239225,7.2791,137.38,137.36,25.0]
[1719322239614,7.2786,137.39,137.36,25.0]
[1719322240730,7.2786,137.39,137.38,25.0]
[1719322241601,7.2781,137.4,137.38,25.0]
[1719322242623,7.60318301,137.41,137.34,18.2026]
[1719322242624,7.2791,137.38,137.34,18.2026]
[1719322242919,7.2796,137.37,137.34,25.0]
[1719322243127,7.2796,137.37,137.36,25.0]
[1719322243312,7.2793,137.38,137.36,25.0]
[1719322243511,7.2787,137.39,137.36,25.0]
[1719322243828,7.2792,137.38,137.36,25.0]
[1719322244323,100.17,137.39,137.34,25.0]
[1719322244628,100.17,137.39,137.33,0.8467785]
[1719322244629,7.2809,137.35,137.33,0.8467785]